bitfinex/quotes_ETHUSD_20210701
["timestamp","ask_amount","ask_price","bid_price","bid_amount"]
[1625168748910,0.00662032,2090.1,2089.1,19.09131999]
[1625168749008,0.00662032,2090.1,2089.3,48.5836935]
[1625168749207,0.00662032,2090.1,2089.3,53.5936935]
[1625168749762,7.18040032,2090.1,2089.3,5.01]
[1625168749903,12.21360032,2090.1,2089.1,0.00678236]
[1625168750700,5.03982032,2090.1,2089.1,0.00678236]
[1625168751813,10.04982032,2090.1,2089.1,0.00678236]
[1625168751911,5.03982032,2090.1,2089.1,0.00678236]
[1625168752007,10.04982032,2090.1,2089.1,0.00678236]
[1625168752110,17.22360032,2090.1,2089.1,0.00678236]
[1625168752862,3.58787,2089.9,2089.1,0.00678236]
[1625168753062,8.59787,2089.9,2089.1,0.00678236]
[1625168753162,7.17563,2089.5,2089.1,0.00678236]
[1625168753264,10.79893,2089.5,2089.1,0.00678236]
[1625168754422,3.6233,2089.5,2089.1,0.00678236]
[1625168754568,8.59787,2089.9,2089.1,0.00678236]
[1625168754820,3.58787,2089.9,2089.1,0.00678236]
[1625168754921,0.00662032,2090.1,2089.1,0.00678236]
[1625168755322,0.00662032,2090.1,2089.3,7.1724]
[1625168755518,0.00662032,2090.1,2089.3,12.1824]
[1625168755619,0.00662032,2090.1,2089.3,5.01]
[1625168755822,0.00662032,2090.1,2089.2,5.01]
[1625168755921,0.00662032,2090.1,2089.1,0.00678236]
[1625168756728,7.17985032,2090.1,2089.1,0.00678236]
[1625168759582,0.00662032,2090.1,2089.1,0.00678236]
[1625168759679,0.00662032,2090.1,2089.1,2.13011999]
[1625168759906,0.00662032,2090.1,2089.2,15.15]
[1625168760052,0.00662032,2090.1,2089.3,0.10347939]
[1625168760306,0.00662032,2090.1,2089.4,0.15]
[1625168760402,0.00662032,2090.1,2089.4,15.24568973]
[1625168760508,0.00662032,2090.1,2089.4,28.25568973]
[1625168760603,0.00662032,2090.1,2089.4,30.00926629]
[1625168760756,0.00662032,2090.1,2089.4,32.13809405]
[1625168760840,0.00662032,2090.1,2089.5,2.39696743]
[1625168760943,0.00662032,2090.1,2089.7,11.89537]
[1625168761041,0.00662032,2090.1,2089.7,16.90537]
[1625168761141,0.00662032,2090.1,2089.7,24.90537]
[1625168761396,0.00662032,2090.1,2089.7,17.735]
[1625168761492,0.00662032,2090.1,2089.7,19.48857656]
[1625168761592,0.00662032,2090.1,2089.8,0.04]
[1625168762041,0.00662032,2090.1,2089.8,1.79357656]
[1625168762242,0.00662032,2090.1,2089.8,1.75357656]
[1625168762491,0.00662032,2090.1,2089.9,7.17033]
[1625168762695,0.00662032,2090.1,2089.9,9.17033]
[1625168762792,0.00662032,2090.1,2090.0,16.65]
[1625168762999,0.00662032,2090.1,2090.0,7.01]
[1625168763198,0.00662032,2090.1,2090.0,10.0]
[1625168763300,0.00662032,2090.1,2090.0,15.01]
[1625168765946,0.00662032,2090.1,2090.0,2.0]
[1625168766096,0.00662032,2090.1,2089.5,14.10755601]
[1625168766097,0.00662032,2090.1,2089.3,1.75357656]
[1625168766196,0.00662032,2090.1,2089.4,2.0]
[1625168766197,4.44742032,2090.1,2089.4,2.0]
[1625168766293,4.44742032,2090.1,2089.3,1.75357656]
[1625168766391,9.45742032,2090.1,2089.3,1.75357656]
[1625168766594,4.44742032,2090.1,2089.3,1.75357656]
[1625168766692,4.44742032,2090.1,2089.1,0.00678236]
[1625168767248,16.63072032,2090.1,2089.1,0.00678236]
[1625168767396,13.62072032,2090.1,2089.1,0.00678236]
[1625168767500,18.63072032,2090.1,2089.1,0.00678236]
[1625168767605,0.06,2090.0,2089.1,0.00678236]
[1625168767953,3.5877626,2089.9,2089.1,0.00678236]
[1625168768048,8.5977626,2089.9,2089.1,0.00678236]
[1625168768454,7.17594,2089.5,2089.1,0.00678236]
[1625168768852,3.2,2089.4,2089.1,0.00678236]
[1625168769604,10.37534,2089.4,2089.1,0.00678236]
[1625168769761,0.08,2089.3,2089.1,0.00678236]
[1625168769849,30.2,2089.2,2088.2,9.55374688]
[1625168770002,30.2,2089.2,2088.1,0.96042497]
[1625168770095,4.49298911,2089.1,2088.1,0.96042497]
[1625168770196,4.49298911,2089.1,2088.1,0.00721393]
[1625168770298,9.38298911,2089.1,2088.1,0.00721393]
[1625168770849,7.17824,2088.7,2088.1,0.00721393]
[1625168771652,1.0031,2088.8,2088.1,0.00721393]
[1625168771751,9.57688859,2089.1,2088.1,0.00721393]
[1625168772150,0.00697859,2089.1,2088.1,7.18420393]
[1625168772495,0.00697859,2089.1,2088.2,2.15120062]
[1625168773345,0.00697859,2089.1,2088.1,5.01721393]
[1625168773450,0.00697859,2089.1,2088.1,0.00721393]
[1625168774253,7.18434859,2089.1,2088.1,0.00721393]
[1625168774645,2.0,2089.0,2088.1,0.00721393]
[1625168775590,7.17928,2088.6,2088.1,0.00721393]
[1625168777744,7.17928,2088.6,2088.1,0.04584933]
[1625168779902,2.8,2088.8,2088.1,0.04584933]
[1625168780003,2.8,2088.8,2088.1,6.65821047]
[1625168780154,0.00697859,2089.1,2088.2,0.12968883]
[1625168780254,0.00697859,2089.1,2088.2,3.22968883]
[1625168780346,0.00697859,2089.1,2088.3,0.16]
[1625168780448,0.00697859,2089.1,2088.3,0.31]
[1625168780556,0.00697859,2089.1,2088.3,19.52564039]
[1625168780649,0.00697859,2089.1,2088.3,27.52564039]
[1625168780748,0.00697859,2089.1,2088.3,32.53564039]
[1625168780854,0.00697859,2089.1,2088.4,0.04]
[1625168780989,0.00697859,2089.1,2088.7,7.17417]
[1625168781092,0.00697859,2089.1,2088.7,11.93727]
[1625168781189,0.00697859,2089.1,2088.7,16.94727]
[1625168781339,0.00697859,2089.1,2088.7,17.90125594]
[1625168781439,0.00697859,2089.1,2088.7,25.90125594]
[1625168781539,0.00697859,2089.1,2088.7,18.72708594]
[1625168781642,0.00697859,2089.1,2088.8,0.06]
[1625168781942,0.00697859,2089.1,2088.7,21.9233785]
[1625168782491,0.00697859,2089.1,2088.8,7.17414]
[1625168782741,0.00697859,2089.1,2088.8,12.18414]
[1625168782945,0.00697859,2089.1,2088.8,5.01]
[1625168783042,0.00697859,2089.1,2088.5,22.57614]
[1625168783255,0.00697859,2089.1,2088.5,9.56614]
[1625168783406,3.39647859,2089.1,2088.2,9.56759]
[1625168783506,10.57293859,2089.1,2088.1,10.32894933]
[1625168783751,10.57293859,2089.1,2088.1,0.04584933]
[1625168785360,15.58293859,2089.1,2088.1,0.04584933]
[1625168785598,0.12,2089.0,2088.1,0.04584933]
[1625168785852,7.17987,2088.6,2088.1,0.04584933]
[1625168785952,10.68367,2088.6,2088.1,0.04584933]
[1625168787046,10.68367,2088.6,2088.1,0.04586248]
[1625168787298,10.68367,2088.6,2088.1,0.00722248]
[1625168787451,0.16,2088.5,2088.1,0.00722248]
[1625168787554,30.2,2088.4,2087.6,0.00749344]
[1625168787793,35.21,2088.4,2087.6,0.00749344]
[1625168787895,3.59082,2088.3,2087.6,0.00749344]
[1625168788898,8.60082,2088.3,2087.6,0.00749344]
[1625168788993,3.0,2088.0,2087.6,0.00749344]
[1625168789094,7.8665,2088.0,2087.6,0.00749344]
[1625168789544,15.04822,2088.0,2087.6,0.00749344]
[1625168790594,2.4911,2088.1,2087.6,0.00749344]
[1625168790694,0.01648058,2088.6,2087.6,0.00749344]
[1625168790695,0.00721393,2088.6,2087.6,0.00749344]
[1625168791042,0.14,2088.5,2087.6,0.00749344]
[1625168791141,4.1769,2088.5,2087.6,0.00749344]
[1625168791296,4.0369,2088.5,2087.6,0.00749344]
[1625168791392,9.0469,2088.5,2087.6,0.00749344]
[1625168791846,7.18086,2088.2,2087.6,0.00749344]
[1625168792093,12.19086,2088.2,2087.6,0.00749344]
[1625168792191,7.18086,2088.2,2087.6,0.00749344]
[1625168792302,12.19086,2088.2,2087.6,0.00749344]
[1625168792451,0.12,2088.1,2087.6,0.00749344]
[1625168792658,0.08,2088.0,2087.6,0.00749344]
[1625168792752,4.3954,2088.0,2087.6,0.00749344]
[1625168792954,9.4054,2088.0,2087.6,0.00749344]
[1625168793055,7.1834,2087.9,2087.6,0.00749344]
[1625168793753,0.04,2087.8,2087.6,0.00749344]
[1625168794052,13.89326,2088.0,2087.6,0.00749344]
[1625168795199,37.38311,2087.7,2087.6,0.00749344]
[1625168795353,37.38311,2087.7,2087.6,3.44e-06]
[1625168795455,42.39311,2087.7,2087.6,3.44e-06]
[1625168795550,42.45311,2087.7,2087.6,3.44e-06]
[1625168795648,12.25311,2087.7,2087.6,3.44e-06]
[1625168796812,27.25311,2087.7,2087.6,3.44e-06]
[1625168796911,12.25311,2087.7,2087.6,3.44e-06]
[1625168797311,27.25311,2087.7,2087.6,3.44e-06]
[1625168798415,12.25311,2087.7,2087.6,3.44e-06]
[1625168798765,27.25311,2087.7,2087.6,3.44e-06]
[1625168800401,12.25311,2087.7,2087.6,3.44e-06]
[1625168801050,7.24311,2087.7,2087.6,3.44e-06]
[1625168801309,7.18311,2087.7,2087.6,3.44e-06]
[1625168802709,12.19311,2087.7,2087.6,3.44e-06]
[1625168802956,15.69071,2087.7,2087.6,3.44e-06]
[1625168803107,15.85071,2087.7,2087.6,3.44e-06]
[1625168803254,40.85071,2087.7,2087.6,3.44e-06]
[1625168803548,48.85071,2087.7,2087.6,3.44e-06]
[1625168803604,40.85071,2087.7,2087.6,3.44e-06]
[1625168804655,15.85071,2087.7,2087.6,3.44e-06]
[1625168805013,12.35311,2087.7,2087.6,3.44e-06]
[1625168805259,7.18311,2087.7,2087.6,3.44e-06]
[1625168805360,7.18311,2087.7,2087.6,4.68380344]
[1625168805458,16.5067,2088.7,2087.6,4.68380344]
[1625168805556,5.9882,2088.7,2087.6,4.68380344]
[1625168805711,14.4322,2088.8,2087.6,4.68380344]
[1625168805879,10.4322,2088.8,2087.6,9.69380344]
[1625168805984,10.4322,2088.8,2087.6,12.68380344]
[1625168806126,0.00697859,2089.1,2087.6,9.69380344]
[1625168806328,0.00697859,2089.1,2087.6,16.96226625]
[1625168806329,11.97055,2088.8,2087.6,16.96226625]
[1625168806428,7.17845,2088.9,2087.7,0.1]
[1625168806825,0.00697859,2089.1,2087.7,0.1]
[1625168806976,0.00697859,2089.1,2087.6,18.75697365]
[1625168808100,7.18634393,2088.6,2087.6,11.57852365]
[1625168808201,7.18634393,2088.6,2087.6,4.68380344]
[1625168808501,12.19634393,2088.6,2087.6,3.44e-06]
[1625168808607,7.18634393,2088.6,2087.6,3.44e-06]
[1625168808702,12.19634393,2088.6,2087.6,3.44e-06]
[1625168808803,0.12,2088.5,2087.6,3.44e-06]
[1625168809607,7.18245,2088.1,2087.6,3.44e-06]
[1625168810599,0.00721393,2088.6,2087.6,3.44e-06]
[1625168810746,7.17987,2088.4,2087.6,4.14850344]
[1625168810845,0.00721393,2088.6,2087.6,4.14850344]
[1625168810943,0.00721393,2088.6,2087.6,17.15850344]
[1625168811444,0.00721393,2088.6,2087.7,41.71607109]
[1625168811545,0.00721393,2088.6,2087.7,46.72607109]
[1625168812446,7.18623393,2088.6,2087.7,46.72607109]
[1625168812796,7.18623393,2088.6,2087.7,5.01]
[1625168813043,7.18623393,2088.6,2087.6,12.14850344]
[1625168813044,7.18623393,2088.6,2087.6,17.15850344]
[1625168813142,7.18623393,2088.6,2087.6,4.14850344]
[1625168813596,7.18623393,2088.6,2087.6,3.44e-06]
[1625168814045,15.78708393,2088.6,2087.6,3.44e-06]
[1625168814148,8.60806393,2088.6,2087.6,3.44e-06]
[1625168814646,7.18153,2088.1,2087.6,3.44e-06]
[1625168815701,9.57537,2088.5,2087.6,3.44e-06]
[1625168816255,0.00721393,2088.6,2087.6,3.44e-06]
[1625168816753,0.00721393,2088.6,2087.6,7.17898344]
[1625168816857,0.00721393,2088.6,2087.6,22.17898344]
[1625168816959,0.00721393,2088.6,2087.7,0.06]
[1625168817124,0.00721393,2088.6,2087.8,7.0959283]
[1625168817215,0.00721393,2088.6,2087.9,15.0]
[1625168817313,3.93e-06,2088.6,2087.9,17.18570109]
[1625168817413,3.93e-06,2088.6,2088.0,0.15]
[1625168817615,0.00697859,2089.1,2088.6,0.00721]
[1625168817766,0.00697859,2089.1,2088.6,7.17584]
[1625168817867,0.00697859,2089.1,2088.6,11.69004]
[1625168818017,0.00697859,2089.1,2088.6,24.70004]
[1625168818116,0.00697859,2089.1,2088.7,0.18]
[1625168818918,0.00697859,2089.1,2088.8,7.17434]
[1625168819018,0.00697859,2089.1,2088.8,12.18434]
[1625168819217,0.00697859,2089.1,2088.8,20.18434]
[1625168819361,0.00697859,2089.1,2088.9,0.04]
[1625168819497,8.59e-06,2089.1,2089.0,0.2]
[1625168820434,8.59e-06,2089.1,2089.0,7.3738]
[1625168820536,8.59e-06,2089.1,2089.0,12.3838]
[1625168820634,8.59e-06,2089.1,2089.0,20.3838]
[1625168820885,8.59e-06,2089.1,2089.0,13.21]
[1625168821923,8.59e-06,2089.1,2089.0,14.2759]
[1625168823968,8.59e-06,2089.1,2089.0,13.21]
[1625168824117,8.59e-06,2089.1,2089.0,5.01]
[1625168824319,8.59e-06,2089.1,2088.6,13.01]
[1625168824472,8.59e-06,2089.1,2088.4,9.56779]
[1625168824668,8.59e-06,2089.1,2088.2,0.15]
[1625168825067,8.59e-06,2089.1,2088.3,0.06]
[1625168825420,8.59e-06,2089.1,2088.2,0.15]
[1625168825771,8.59e-06,2089.1,2088.5,7.17622]
[1625168825969,8.59e-06,2089.1,2088.5,12.18622]
[1625168826126,8.59e-06,2089.1,2088.5,12.13622]
[1625168826974,8.59e-06,2089.1,2088.5,16.26072]
[1625168827422,8.59e-06,2089.1,2088.5,51.7242164]
[1625168828403,8.59e-06,2089.1,2088.5,16.26072]
[1625168828753,8.59e-06,2089.1,2088.5,12.18622]
[1625168828951,8.59e-06,2089.1,2088.6,0.14]
[1625168829307,8.59e-06,2089.1,2088.1,25.23233413]
[1625168829308,3.60820859,2089.1,2088.1,25.08233413]
[1625168829457,3.60820859,2089.1,2088.1,10.67101393]
[1625168829654,3.60820859,2089.1,2088.1,0.00721393]
[1625168829813,15.79700859,2089.1,2088.1,0.00721393]
[1625168829908,10.78700859,2089.1,2088.1,0.00721393]
[1625168830007,15.79700859,2089.1,2088.1,0.00721393]
[1625168830155,15.74700859,2089.1,2088.1,0.00721393]
[1625168830506,0.16,2089.0,2088.1,0.00721393]
[1625168830836,7.18063,2088.6,2088.1,0.00721393]
[1625168830934,10.66423,2088.6,2088.1,0.00721393]
[1625168831334,15.67423,2088.6,2088.1,0.00721393]
[1625168831532,0.1,2088.5,2088.1,0.00721393]
[1625168831637,30.2,2088.4,2087.4,0.16470737]
[1625168831938,3.45569344,2088.1,2087.4,0.16470737]
[1625168833434,3.45569344,2088.1,2087.4,7.34501737]
[1625168833534,3.45569344,2088.1,2087.4,12.35501737]
[1625168834084,3.45569344,2088.1,2087.4,0.16470737]
[1625168835275,8.46569344,2088.1,2087.4,0.16470737]
[1625168835352,3.45569344,2088.1,2087.4,0.16470737]
[1625168835553,0.04,2088.0,2087.4,0.16470737]
[1625168835807,7.18292,2087.7,2087.4,0.16470737]
[1625168836204,4.34879344,2088.1,2087.4,0.16470737]
[1625168837108,7.18239,2088.0,2087.4,0.16470737]
[1625168838520,12.19239,2088.0,2087.4,0.16470737]
[1625168838622,7.18239,2088.0,2087.4,0.16470737]
[1625168838869,0.06,2087.9,2087.4,0.16470737]
[1625168839026,7.24264,2087.9,2087.4,0.16470737]
[1625168839270,7.18264,2087.9,2087.4,0.16470737]
[1625168839622,0.00749344,2088.1,2087.4,0.16470737]
[1625168839731,0.00749344,2088.1,2087.4,3.36360737]
[1625168839935,0.00749344,2088.1,2087.4,8.37360737]
[1625168840236,0.00749344,2088.1,2087.4,15.55420737]
[1625168840334,0.00749344,2088.1,2087.4,23.55420737]
[1625168840534,0.00721393,2088.6,2087.6,30.2]
[1625168840636,0.00721393,2088.6,2087.7,0.12090908]
[1625168841183,0.00721393,2088.6,2087.9,9.57075]
[1625168841382,0.00721393,2088.6,2087.9,17.86825]
[1625168842317,0.00721393,2088.6,2087.9,8.2975]
[1625168842764,0.00721393,2088.6,2087.9,5.01]
[1625168842864,0.00721393,2088.6,2087.8,12.1888]
[1625168842965,0.00721393,2088.6,2087.8,7.1788]
[1625168843118,0.00721393,2088.6,2087.8,12.1888]
[1625168844789,0.00721393,2088.6,2087.8,13.3326]
[1625168845539,0.00721393,2088.6,2087.8,21.3326]
[1625168845642,0.00721393,2088.6,2087.8,14.1538]
[1625168845741,0.00721393,2088.6,2087.9,0.12]
[1625168845844,0.00721393,2088.6,2087.9,3.4902]
[1625168846142,0.00721393,2088.6,2087.9,8.5002]
[1625168846245,0.00721393,2088.6,2087.9,3.4902]
[1625168846345,0.00721393,2088.6,2087.9,8.5002]
[1625168846946,0.00721393,2088.6,2088.0,0.06]
[1625168847350,0.00721393,2088.6,2088.2,7.17715]
[1625168847599,0.00721393,2088.6,2088.2,12.18715]
[1625168847747,0.00721393,2088.6,2088.2,7.17715]
[1625168847850,0.00721393,2088.6,2088.2,12.18715]
[1625168848050,3.93e-06,2088.6,2088.2,12.18715]
[1625168848200,3.93e-06,2088.6,2088.3,0.16]
[1625168848298,3.93e-06,2088.6,2088.3,2.34146974]
[1625168848400,3.93e-06,2088.6,2088.4,7.17486]
[1625168848550,3.93e-06,2088.6,2088.4,16.48246]
[1625168848738,3.93e-06,2088.6,2088.5,0.04]
[1625168849287,3.93e-06,2088.6,2088.3,5.01]
[1625168849486,3.93e-06,2088.6,2088.1,7.17766]
[1625168849584,3.93e-06,2088.6,2088.1,12.18766]
[1625168850734,3.93e-06,2088.6,2088.2,15.1]
[1625168850833,3.93e-06,2088.6,2088.2,19.1041]
[1625168850934,3.93e-06,2088.6,2088.2,34.30333078]
[1625168851057,3.93e-06,2088.6,2088.3,0.15]
[1625168851153,3.93e-06,2088.6,2088.3,2.21889152]
[1625168851258,0.00678236,2089.6,2088.4,15.2]
[1625168851406,0.00678236,2089.6,2088.7,8.1111257]
[1625168851504,0.00678236,2089.6,2088.8,3.4]
[1625168851762,0.00678236,2089.6,2089.1,7.17358]
[1625168851955,0.00678236,2089.6,2089.1,12.18358]
[1625168852256,0.00678236,2089.6,2089.1,20.18358]
[1625168852354,0.00678236,2089.6,2089.1,21.51988]
[1625168853155,0.00678236,2089.6,2089.2,0.06]
[1625168853282,0.00678236,2089.6,2089.2,4.6641]
[1625168853386,0.00678236,2089.6,2089.2,24.84757]
[1625168853584,0.00678236,2089.6,2089.2,26.06277]
[1625168853687,0.00678236,2089.6,2089.2,26.00277]
[1625168854084,0.00678236,2089.6,2089.2,9.6141]
[1625168854735,0.00678236,2089.6,2089.2,4.6041]
[1625168854836,0.00678236,2089.6,2088.6,10.4544]
[1625168855086,4.83358236,2089.6,2088.6,10.4544]
[1625168855384,4.83358236,2089.6,2088.5,10.5442]
[1625168855785,12.00923236,2089.6,2088.5,17.72029]
[1625168856486,12.00923236,2089.6,2089.2,43.48476382]
[1625168856584,4.83358236,2089.6,2089.2,43.48476382]
[1625168856735,0.00678236,2089.6,2089.2,43.48476382]
[1625168857037,0.00678236,2089.6,2089.2,48.49476382]
[1625168857383,0.00678236,2089.6,2089.2,43.48476382]
[1625168857632,0.00678236,2089.6,2088.8,12.18506]
[1625168858233,0.00678236,2089.6,2088.8,5.01]
[1625168858484,0.00678236,2089.6,2088.6,22.57674]
[1625168859382,0.00678236,2089.6,2088.6,9.56674]
[1625168859483,7.18245236,2089.6,2088.6,9.56674]
[1625168859787,7.18245236,2089.6,2088.5,10.5442]
[1625168859881,11.11365236,2089.6,2088.5,10.5442]
[1625168860033,16.12365236,2089.6,2088.5,10.5442]
[1625168860780,19.71247236,2089.6,2088.5,10.5442]
[1625168860882,7.17771,2089.1,2088.1,10.21731393]
[1625168860986,11.02301,2089.1,2088.1,0.00721393]
[1625168861687,3.8453,2089.1,2088.1,0.00721393]
[1625168862185,3.2,2089.4,2088.1,7.18520393]
[1625168862382,5.01678236,2089.6,2088.1,12.19520393]
[1625168862485,0.00678236,2089.6,2088.1,12.19520393]
[1625168862583,8.55560236,2089.6,2088.1,12.19520393]
[1625168862684,3.58882,2089.6,2088.1,12.19520393]
[1625168862987,3.58882,2089.6,2088.1,15.78352173]
[1625168863085,3.58882,2089.6,2088.2,0.06]
[1625168863387,3.58882,2089.6,2088.1,8.60553173]
[1625168863637,7.17687,2089.4,2088.6,7.17654]
[1625168863786,7.17687,2089.4,2088.4,9.56872]
[1625168863935,7.17687,2089.4,2088.4,14.57872]
[1625168864039,7.17687,2089.4,2088.4,9.56872]
[1625168864235,7.17687,2089.4,2088.4,14.57872]
[1625168865156,7.17687,2089.4,2088.4,9.56872]
[1625168865254,7.17687,2089.4,2088.1,62.2230768]
[1625168865356,12.18687,2089.4,2088.1,58.634759]
[1625168865504,12.18687,2089.4,2088.1,5.01721393]
[1625168865753,12.18687,2089.4,2088.1,0.00721393]
[1625168866457,12.18687,2089.4,2088.2,7.17773]
[1625168866555,12.18687,2089.4,2088.2,12.18773]
[1625168866892,7.17687,2089.4,2088.2,12.18773]
[1625168867037,7.17687,2089.4,2088.2,16.05723]
[1625168867189,7.17687,2089.4,2088.3,0.1]
[1625168867288,20.2702,2089.7,2088.3,0.1]
[1625168867587,20.2702,2089.7,2088.8,7.17577]
[1625168867687,10.7674,2090.0,2088.8,7.17577]
[1625168867688,14.35549,2090.0,2088.8,7.17577]
[1625168867838,3.58809,2090.0,2088.8,15.94237]
[1625168867942,0.00662032,2090.1,2088.8,18.93237]
[1625168868086,0.00662032,2090.1,2088.8,16.7666]
[1625168868197,0.00662032,2090.1,2088.8,8.7666]
[1625168868290,0.00662032,2090.1,2088.8,16.7666]
[1625168868940,20.51559032,2090.5,2088.9,30.2]
[1625168869080,20.51559032,2090.5,2088.9,35.21]
[1625168869236,7.17445,2090.0,2089.1,7.17468]
[1625168869481,15.50559032,2090.5,2089.1,12.18468]
[1625168869883,15.50559032,2090.5,2089.1,12.19146236]
[1625168870534,20.51559032,2090.5,2089.1,12.19146236]
[1625168870736,7.17365,2090.1,2089.1,12.19146236]
[1625168871279,7.17365,2090.1,2089.1,15.77815826]
[1625168871529,7.17365,2090.1,2089.2,0.08]
[1625168871984,7.17365,2090.1,2089.1,13.01678236]
[1625168872539,7.17365,2090.1,2089.1,5.01678236]
[1625168872687,12.05895,2090.1,2089.1,0.00678236]
[1625168872837,17.06895,2090.1,2089.1,0.00678236]
[1625168873285,17.01895,2090.1,2089.1,0.00678236]
[1625168873433,7.17594,2089.7,2089.1,0.00678236]
[1625168873536,13.53954,2089.7,2089.1,0.00678236]
[1625168873789,7.17631,2089.4,2089.1,0.00678236]
[1625168873944,10.39001,2089.4,2089.1,0.00678236]
[1625168875341,3.2137,2089.4,2089.1,0.00678236]
[1625168875492,10.2691,2089.8,2089.1,0.00678236]
[1625168876235,19.83571,2089.8,2089.1,0.00678236]
[1625168876336,9.56661,2089.8,2089.1,0.00678236]
[1625168877435,7.17436,2089.7,2089.1,7.18097236]
[1625168877539,7.17436,2089.7,2089.1,12.19097236]
[1625168877636,7.17436,2089.7,2089.1,20.19097236]
[1625168877888,7.17436,2089.7,2089.1,5.01678236]
[1625168878035,7.17436,2089.7,2089.1,0.00678236]
[1625168878129,7.17436,2089.7,2089.1,5.01678236]
[1625168878326,7.17436,2089.7,2089.1,0.00678236]
[1625168882115,14.79108,2089.7,2089.1,0.00678236]
[1625168882967,19.80108,2089.7,2089.1,0.00678236]
[1625168883218,0.12,2089.6,2089.1,0.00678236]
[1625168884417,7.1768,2089.4,2089.1,0.00678236]
[1625168884517,12.1868,2089.4,2089.1,0.00678236]
[1625168884869,5.01,2089.4,2089.1,0.00678236]
[1625168884973,9.56661,2089.8,2089.1,0.00678236]
[1625168885720,7.17458,2089.9,2089.1,7.18189236]
[1625168885972,7.17458,2089.9,2089.1,12.19189236]
[1625168886120,7.17458,2089.9,2089.1,15.86729236]
[1625168886618,7.17458,2089.9,2089.1,23.86729236]
[1625168887189,7.17458,2089.9,2089.1,15.86729236]
[1625168888392,7.17458,2089.9,2089.1,23.86729236]
[1625168888497,7.17402,2090.0,2089.1,23.86729236]
[1625168888593,11.96095,2090.1,2089.1,23.86729236]
[1625168888697,3.58741,2090.2,2089.2,0.1]
[1625168889092,3.58741,2090.2,2089.1,16.69218236]
[1625168889344,15.6505,2090.4,2089.1,16.69218236]
[1625168889446,10.6405,2090.4,2089.1,18.43528236]
[1625168889546,10.6405,2090.4,2089.7,7.17269]
[1625168889797,0.00648778,2090.6,2089.7,12.18269]
[1625168889892,0.00648778,2090.6,2089.7,7.17269]
[1625168889996,0.00648778,2090.6,2089.7,12.18269]
[1625168890093,0.00648778,2090.6,2089.7,7.17269]
[1625168890247,0.00648778,2090.6,2089.7,12.18269]
[1625168890344,0.00648778,2090.6,2089.7,7.17269]
[1625168890441,0.00648778,2090.6,2089.7,12.18269]
[1625168890747,6.82648778,2090.8,2089.8,26.1]
[1625168890994,6.82648778,2090.8,2089.8,31.11]
[1625168891094,3.58624,2090.9,2089.8,31.11]
[1625168891393,7.17236,2090.4,2089.8,5.01]
[1625168891597,7.17236,2090.4,2089.7,20.18269]
[1625168891699,7.17236,2090.4,2089.7,15.17269]
[1625168891799,7.17236,2090.4,2089.7,20.18269]
[1625168892150,7.12236,2090.4,2089.7,13.01]
[1625168892665,7.12236,2090.4,2089.6,47.89127495]
[1625168892666,7.12236,2090.4,2089.6,0.00662032]
[1625168892857,10.41206,2090.4,2089.6,0.00662032]
[1625168894571,15.42206,2090.4,2089.6,0.00662032]
[1625168895590,10.41206,2090.4,2089.6,0.00662032]
[1625168895941,15.42206,2090.4,2089.6,0.00662032]
[1625168896141,10.41206,2090.4,2089.6,0.00662032]
[1625168896233,15.42206,2090.4,2089.6,0.00662032]
[1625168897990,19.00945,2090.4,2089.6,0.00662032]
[1625168898090,11.88709,2090.4,2089.6,0.00662032]
[1625168898189,0.16,2090.3,2089.6,0.00662032]
[1625168898392,3.58754,2090.1,2089.6,0.00662032]
[1625168898495,4.64524,2090.1,2089.6,0.00662032]
[1625168898594,6.0677,2090.1,2089.6,0.00662032]
[1625168898843,0.1,2090.0,2089.6,0.00662032]
[1625168898992,13.5527,2089.8,2089.6,0.00662032]
[1625168899191,18.5627,2089.8,2089.6,0.00662032]
[1625168899446,18.5627,2089.8,2089.6,3.2e-07]
[1625168899546,0.16,2089.7,2089.6,3.2e-07]
[1625168899895,0.31,2089.7,2089.6,3.2e-07]
[1625168899997,3.04617904,2089.7,2089.1,0.00678236]
[1625168900147,3.58958,2089.5,2089.1,0.00678236]
[1625168900295,13.589579,2089.4,2089.1,0.00678236]
[1625168900497,18.599579,2089.4,2089.1,0.00678236]
[1625168901107,0.15,2089.3,2089.1,0.00678236]
[1625168901203,11.8017,2089.3,2089.1,0.00678236]
[1625168901356,27.97301,2089.2,2089.1,0.00678236]
[1625168901605,32.98301,2089.2,2089.1,0.00678236]
[1625168901804,14.58301,2089.2,2089.1,0.00678236]
[1625168902304,22.58301,2089.2,2089.1,0.00678236]
[1625168902507,34.53991,2089.2,2089.1,0.00678236]
[1625168902609,34.69991,2089.2,2089.1,0.00678236]
[1625168902898,24.14991,2089.2,2089.1,0.00678236]
[1625168903095,14.5769,2089.2,2089.1,0.00678236]
[1625168903395,24.14991,2089.2,2089.1,0.00678236]
[1625168903499,48.49991,2089.2,2089.1,0.00678236]
[1625168903599,48.49991,2089.2,2089.1,2.36e-06]
[1625168903702,48.64991,2089.2,2089.1,2.36e-06]
[1625168904048,54.02123846,2089.2,2089.1,2.36e-06]
[1625168904152,58.02123846,2089.2,2089.1,2.36e-06]
[1625168904605,63.02123846,2089.2,2088.6,1.095e-05]
[1625168904705,59.02123846,2089.2,2088.6,1.095e-05]
[1625168904803,3.5909964,2089.0,2088.6,1.095e-05]
[1625168904901,25.0,2088.9,2088.6,1.095e-05]
[1625168905002,25.15,2088.9,2088.6,1.095e-05]
[1625168905137,30.16,2088.9,2088.6,1.095e-05]
[1625168905238,0.16,2088.8,2088.6,1.095e-05]
[1625168905337,4.2873,2088.8,2088.6,1.095e-05]
[1625168905435,15.15,2088.7,2088.6,1.095e-05]
[1625168905588,38.32,2088.7,2088.6,1.095e-05]
[1625168905887,41.05617904,2088.7,2088.6,1.095e-05]
[1625168906083,61.05617904,2088.7,2088.6,1.095e-05]
[1625168906188,41.05617904,2088.7,2088.6,1.095e-05]
[1625168906934,51.33757904,2088.7,2088.6,1.095e-05]
[1625168907238,56.33757904,2088.7,2088.6,1.095e-05]
[1625168907748,51.33757904,2088.7,2088.6,1.095e-05]
[1625168907851,26.33757904,2088.7,2088.6,1.095e-05]
[1625168907949,33.33757904,2088.7,2088.6,1.095e-05]
[1625168908102,30.6014,2088.7,2088.6,1.095e-05]
[1625168908199,38.6014,2088.7,2088.6,1.095e-05]
[1625168908700,30.6014,2088.7,2088.6,1.095e-05]
[1625168908905,38.6014,2088.7,2088.6,1.095e-05]
[1625168909003,15.6014,2088.7,2088.6,1.095e-05]